[Event "ESP-chT Honor Division 2022"]
[Site "Linares"]
[Date "2022.09.18"]
[Round "2.8"]
[White "Tabatabaei, M. Amin"]
[Black "Santos Latasa, Jaime"]
[Result "0-1"]
[ECO "C50"]
[WhiteElo "2651"]
[BlackElo "2680"]
[Annotator "ChessBase"]
[PlyCount "162"]
[EventDate "2022.09.17"]
[EventType "team-tourn"]
[EventCountry "ESP"]
[SourceTitle "playchess.com"]
[Source "ChessBase"]
[SourceQuality "1"]
[TimeControl "5400+30"]

1. e4 {[%emt 0:00:02]} e5 {[%emt 0:00:06]} 2. Nf3 {[%emt 0:00:16]} Nc6 {[%emt 0:00:05]} 3. Bc4 {[%emt 0:00:06]} Bc5 {[%emt 0:00:11]} 4. O-O {[%emt 0:00:16]} Nf6 {[%emt 0:00:04]} 5. d3 {[%emt 0:00:05]} d6 {[%emt 0:00:05]} 6. c3 {[%emt 0:00:15]} a5 {[%emt 0:00:08]} 7. Re1 {[%emt 0:00:08]} O-O {[%emt 0:00:15]} 8. h3 {[%emt 0:00:09]} h6 {[%emt 0:00:05]} 9. Nbd2 {[%emt 0:00:27]} Be6 {[%emt 0:00:30]} 10. Bb5 {[%emt 0:00:45]} Bb6 {[%emt 0:01:03]} 11. Nc4 {[%emt 0:01:04]} Bc5 {[%emt 0:01:03]} 12. Ba4 {[%emt 0:00:29]} Bxc4 {[%emt 0:01:00]} 13. dxc4 {[%emt 0:00:08]} Nh7 {[%emt 0:00:09]} 14. Bc2 {[%emt 0:03:39]} Qf6 {[%emt 0:00:28]} 15. Qe2 {[%emt 0:08:17]} Ng5 {[%emt 0:04:32]} 16. Nxg5 {[%emt 0:01:01]} hxg5 {[%emt 0:00:06]} 17. Rf1 {[%emt 0:00:05]} Nd8 {[%emt 0:00:07]} 18. Qg4 {[%emt 0:00:23]} Ne6 {[%emt 0:00:10]} 19. g3 {[%emt 0:00:01]} g6 {[%emt 0:00:23]} 20. Kg2 {[%emt 0:10:14]} Kg7 {[%emt 0:00:57]} 21. Qf3 {[%emt 0:00:12]} Qxf3+ {[%emt 0:04:06]} 22. Kxf3 {[%emt 0:00:01]} f5 {[%emt 0:00:13]} 23. exf5 {[%emt 0:01:13]} gxf5 {[%emt 0:00:19]} 24. Bd2 {[%emt 0:00:07]} Bb6 {[%emt 0:01:40]} 25. Rae1 {[%emt 0:10:21]} Kf6 {[%emt 0:02:34]} 26. Kg2 {[%emt 0:03:41]} Rh8 {[%emt 0:01:28]} 27. Rh1 {[%emt 0:00:57]} c6 {[%emt 0:05:38]} 28. Bc1 {[%emt 0:02:59]} Rad8 {[%emt 0:02:26]} 29. Rd1 {[%emt 0:00:56]} e4 {[%emt 0:04:44]} 30. g4 {[%emt 0:08:56]} Nf4+ {[%emt 0:01:39]} 31. Bxf4 {[%emt 0:07:12]} gxf4 {[%emt 0:00:15]} 32. f3 {[%emt 0:05:54]} Ke5 {[%emt 0:03:16]} 33. h4 {[%emt 0:11:48]} exf3+ {[%emt 0:03:34]} 34. Kxf3 {[%emt 0:00:06]} fxg4+ {[%emt 0:00:06]} 35. Kxg4 {[%emt 0:08:30]} Rdg8+ {[%emt 0:00:15]} 36. Kf3 {[%emt 0:00:07]} Rg3+ {[%emt 0:00:06]} 37. Ke2 {[%emt 0:00:03]} Rg2+ {[%emt 0:00:34]} 38. Kd3 {[%emt 0:00:02]} Rhg8 {[%emt 0:00:14]} 39. Rhe1+ {[%emt 0:02:08]} Kf6 {[%emt 0:00:52]} 40. Bb3 {[%emt 0:01:28]} Kf5 {[%emt 0:02:58]} 41. Rd2 {[%emt 0:00:30]} R8g3+ {[%emt 0:02:08]} 42. Kc2 {[%emt 0:00:01]} Rxd2+ {[%emt 0:01:56]} 43. Kxd2 {[%emt 0:00:04]} Be3+ {[%emt 0:00:41]} 44. Kd1 {[%emt 0:01:09]} Rh3 {[%emt 0:00:52]} 45. Bc2+ {[%emt 0:00:42]} Ke5 {[%emt 0:03:31]} 46. a3 {[%emt 0:02:30]} Rxh4 {[%emt 0:01:36]} 47. b4 {[%emt 0:00:17]} Rh2 {[%emt 0:01:39]} 48. Re2 {[%emt 0:00:01]} Rh1+ {[%emt 0:00:34]} 49. Re1 {[%emt 0:00:01]} Rh2 {[%emt 0:02:15]} 50. Re2 {[%emt 0:00:01]} Rh8 {[%emt 0:00:09]} 51. bxa5 {[%emt 0:02:09]} Rh1+ {[%emt 0:06:23]} 52. Re1 {[%emt 0:00:01]} Rh5 {[%emt 0:00:10]} 53. Bg6 {[%emt 0:02:32]} Rg5 {[%emt 0:00:17]} 54. Bd3 {[%emt 0:00:29]} Kf6 {[%emt 0:00:46]} 55. Rh1 {[%emt 0:01:22]} Rxa5 {[%emt 0:03:23]} 56. Rh6+ {[%emt 0:00:02]} Ke7 {[%emt 0:03:10]} 57. Rh7+ {[%emt 0:00:34]} Ke6 {[%emt 0:00:08]} 58. Rxb7 {[%emt 0:08:16]} Rxa3 {[%emt 0:00:49]} 59. Kc2 {[%emt 0:00:04]} f3 {[%emt 0:01:57]} 60. Kb2 {[%emt 0:02:38]} Ra8 {[%emt 0:01:06]} 61. Be4 {[%emt 0:01:46]} f2 {[%emt 0:01:15]} 62. Bxc6 {[%emt 0:00:01]} Rf8 {[%emt 0:02:56]} 63. Bd5+ {[%emt 0:00:18]} Kf6 {[%emt 0:00:22]} 64. Bg2 {[%emt 0:00:02]} Rg8 {[%emt 0:00:09]} 65. Bh3 {[%emt 0:01:31]} Rg3 {[%emt 0:00:13]} 66. Bf1 {[%emt 0:00:20]} Rg1 {[%emt 0:00:15]} 67. Bh3 {[%emt 0:00:04]} f1=Q {[%emt 0:00:28]} 68. Bxf1 {[%emt 0:00:05]} Rxf1 {[%emt 0:00:05]} 69. Rh7 {[%emt 0:00:02]} Rf2+ {[%emt 0:00:34]} 70. Kb3 {[%emt 0:00:02]} Bc5 {[%emt 0:00:35]} 71. Rh5 {[%emt 0:00:05]} Rf5 {[%emt 0:00:40]} 72. Rh4 {[%emt 0:00:14]} Ke5 {[%emt 0:00:07]} 73. Ka4 {[%emt 0:00:10]} Rf4 {[%emt 0:00:35]} 74. Rh5+ {[%emt 0:00:05]} Ke4 {[%emt 0:00:34]} 75. Kb3 {[%emt 0:00:04]} Rf5 {[%emt 0:00:28]} 76. Rh4+ {[%emt 0:00:12]} Kd3 {[%emt 0:00:08]} 77. Rh3+ {[%emt 0:00:02]} Be3 {[%emt 0:00:29]} 78. Rh8 {[%emt 0:00:14]} Rf7 {[%emt 0:00:19]} 79. Rb8 {[%emt 0:00:11]} Rf1 {[%emt 0:00:53]} 80. Rd8 {[%emt 0:00:08]} Rb1+ {[%emt 0:00:22]} 81. Ka2 {[%emt 0:00:04]} Rb6 {[%emt 0:00:12]} 0-1

[Event "ESP-chT Honor Division 2022"]
[Site "Linares"]
[Date "2022.09.18"]
[Round "2.9"]
[White "Pichot, Alan"]
[Black "Iturrizaga Bonelli, Eduardo"]
[Result "1/2-1/2"]
[ECO "B15"]
[WhiteElo "2641"]
[BlackElo "2630"]
[Annotator "ChessBase"]
[PlyCount "62"]
[EventDate "2022.09.17"]
[EventType "team-tourn"]
[EventCountry "ESP"]
[SourceTitle "playchess.com"]
[Source "ChessBase"]
[SourceQuality "1"]
[TimeControl "5400+30"]

1. e4 {[%emt 0:00:06]} c6 {[%emt 0:00:56]} 2. d4 {[%emt 0:00:16]} d5 {[%emt 0:00:04]} 3. Nc3 {[%emt 0:00:47]} dxe4 {[%emt 0:00:11]} 4. Nxe4 {[%emt 0:00:09]} Nf6 {[%emt 0:02:23]} 5. Nxf6+ {[%emt 0:00:40]} exf6 {[%emt 0:00:12]} 6. c3 {[%emt 0:00:56]} Bd6 {[%emt 0:00:22]} 7. Bd3 {[%emt 0:01:06]} O-O {[%emt 0:01:43]} 8. Qc2 {[%emt 0:02:10]} Re8+ {[%emt 0:02:55]} 9. Ne2 {[%emt 0:01:58]} h5 {[%emt 0:03:25]} 10. O-O {[%emt 0:02:38]} h4 {[%emt 0:02:09]} 11. h3 {[%emt 0:04:33]} Nd7 {[%emt 0:03:27]} 12. Bd2 {[%emt 0:03:54]} Nf8 {[%emt 0:04:01]} 13. Rae1 {[%emt 0:04:39]} g6 {[%emt 0:07:57]} 14. Nf4 {[%emt 0:07:30]} Be6 {[%emt 0:11:25]} 15. Re2 {[%emt 0:07:31]} Bc7 {[%emt 0:12:02]} 16. Nxe6 {[%emt 0:10:06]} Rxe6 {[%emt 0:04:44]} 17. Rxe6 {[%emt 0:06:13]} Nxe6 {[%emt 0:00:07]} 18. Re1 {[%emt 0:00:28]} f5 {[%emt 0:03:13]} 19. Bc4 {[%emt 0:03:29]} Nf4 {[%emt 0:03:19]} 20. Qb3 {[%emt 0:05:13]} Qd7 {[%emt 0:01:32]} 21. Qd1 {[%emt 0:05:52]} Re8 {[%emt 0:01:12]} 22. Rxe8+ {[%emt 0:02:24]} Qxe8 {[%emt 0:00:05]} 23. Qf3 {[%emt 0:00:57]} Qe4 {[%emt 0:00:20]} 24. Qxe4 {[%emt 0:01:09]} fxe4 {[%emt 0:00:06]} 25. Kf1 {[%emt 0:01:22]} Kf8 {[%emt 0:00:47]} 26. Bxf4 {[%emt 0:01:44]} Bxf4 {[%emt 0:00:07]} 27. Ke2 {[%emt 0:00:14]} b5 {[%emt 0:00:23]} 28. Bb3 {[%emt 0:00:06]} Bc1 {[%emt 0:00:11]} 29. Bc2 {[%emt 0:01:06]} Bxb2 {[%emt 0:00:10]} 30. Bxe4 {[%emt 0:00:12]} Bxc3 {[%emt 0:00:06]} 31. Bxc6 {[%emt 0:00:06]} Bxd4 {[%emt 0:00:07]} 1/2-1/2

[Event "ESP-chT Honor Division 2022"]
[Site "Linares"]
[Date "2022.09.18"]
[Round "2.10"]
[White "Yuffa, Daniil"]
[Black "Perez Candelario, Manuel"]
[Result "1/2-1/2"]
[ECO "D37"]
[WhiteElo "2600"]
[BlackElo "2566"]
[Annotator "ChessBase"]
[PlyCount "64"]
[EventDate "2022.09.17"]
[EventType "team-tourn"]
[EventCountry "ESP"]
[SourceTitle "playchess.com"]
[Source "ChessBase"]
[SourceQuality "1"]
[TimeControl "5400+30"]

1. d4 {[%emt 0:00:10]} d5 {[%emt 0:00:02]} 2. c4 {[%emt 0:00:07]} e6 {[%emt 0:00:03]} 3. Nf3 {[%emt 0:00:38]} Nf6 {[%emt 0:00:05]} 4. Nc3 {[%emt 0:00:20]} a6 {[%emt 0:00:11]} 5. cxd5 {[%emt 0:00:14]} exd5 {[%emt 0:00:05]} 6. Bg5 {[%emt 0:00:06]} Be6 {[%emt 0:00:35]} 7. e3 {[%emt 0:00:08]} Nbd7 {[%emt 0:00:38]} 8. Bf4 {[%emt 0:00:08]} h6 {[%emt 0:15:52]} 9. Bd3 {[%emt 0:00:36]} g5 {[%emt 0:06:16]} 10. Bg3 {[%emt 0:01:51]} Nh5 {[%emt 0:00:19]} 11. Be5 {[%emt 0:08:24]} Nhf6 {[%emt 0:00:07]} 12. Qb3 {[%emt 0:09:52]} g4 {[%emt 0:03:54]} 13. Bxf6 {[%emt 0:01:51]} Qxf6 {[%emt 0:00:07]} 14. Ne5 {[%emt 0:04:31]} Nxe5 {[%emt 0:00:16]} 15. dxe5 {[%emt 0:00:10]} Qxe5 {[%emt 0:00:06]} 16. Qxb7 {[%emt 0:00:14]} Rd8 {[%emt 0:00:15]} 17. Qxa6 {[%emt 0:19:40]} Bd6 {[%emt 0:04:12]} 18. Qa4+ {[%emt 0:01:48]} Ke7 {[%emt 0:01:48]} 19. Rd1 {[%emt 0:09:52]} Ra8 {[%emt 0:10:09]} 20. Qd4 {[%emt 0:11:47]} c5 {[%emt 0:12:13]} 21. Qxe5 {[%emt 0:00:11]} Bxe5 {[%emt 0:00:04]} 22. Bb1 {[%emt 0:01:39]} d4 {[%emt 0:08:00]} 23. exd4 {[%emt 0:00:26]} cxd4 {[%emt 0:00:04]} 24. Ne2 {[%emt 0:01:45]} Bxa2 {[%emt 0:03:34]} 25. Bxa2 {[%emt 0:02:23]} Rxa2 {[%emt 0:00:05]} 26. Nxd4 {[%emt 0:00:49]} Rxb2 {[%emt 0:03:18]} 27. O-O {[%emt 0:01:52]} Kf6 {[%emt 0:05:27]} 28. Nc6 {[%emt 0:01:51]} Rc8 {[%emt 0:01:48]} 29. Nxe5 {[%emt 0:00:14]} Kxe5 {[%emt 0:00:03]} 30. Rfe1+ {[%emt 0:00:32]} Kf6 {[%emt 0:00:32]} 31. Rd4 {[%emt 0:01:23]} h5 {[%emt 0:01:39]} 32. g3 {[%emt 0:00:37]} Rc5 {[%emt 0:00:31]} 1/2-1/2

[Event "ESP-chT Honor Division 2022"]
[Site "Linares"]
[Date "2022.09.18"]
[Round "2.11"]
[White "Stefanova, Antoaneta"]
[Black "Ibarra Jerez, Jose Carlos"]
[Result "1/2-1/2"]
[ECO "D02"]
[WhiteElo "2472"]
[BlackElo "2570"]
[Annotator "ChessBase"]
[PlyCount "61"]
[EventDate "2022.09.17"]
[EventType "team-tourn"]
[EventCountry "ESP"]
[SourceTitle "playchess.com"]
[Source "ChessBase"]
[SourceQuality "1"]
[TimeControl "5400+30"]

1. d4 {[%emt 0:00:03]} d5 {[%emt 0:01:04]} 2. Nf3 {[%emt 0:03:35]} e6 {[%emt 0:00:50]} 3. Bf4 {[%emt 0:03:20]} Nf6 {[%emt 0:03:26]} 4. e3 {[%emt 0:04:23]} Bd6 {[%emt 0:07:25]} 5. Bg3 {[%emt 0:02:17]} c5 {[%emt 0:02:52]} 6. c4 {[%emt 0:06:01]} cxd4 {[%emt 0:05:07]} 7. Nxd4 {[%emt 0:03:42]} Bxg3 {[%emt 0:16:40]} 8. hxg3 {[%emt 0:00:32]} e5 {[%emt 0:02:32]} 9. Nb3 {[%emt 0:03:34]} Bg4 {[%emt 0:09:47]} 10. Be2 {[%emt 0:04:20]} Bxe2 {[%emt 0:03:23]} 11. Qxe2 {[%emt 0:00:28]} Nc6 {[%emt 0:04:30]} 12. Nc3 {[%emt 0:03:58]} dxc4 {[%emt 0:01:44]} 13. Qxc4 {[%emt 0:01:48]} O-O {[%emt 0:01:24]} 14. Rd1 {[%emt 0:08:52]} Qe7 {[%emt 0:01:47]} 15. Nc5 {[%emt 0:09:20]} Rfd8 {[%emt 0:04:11]} 16. O-O {[%emt 0:12:03]} Rxd1 {[%emt 0:06:21]} 17. Rxd1 {[%emt 0:00:10]} Rd8 {[%emt 0:00:29]} 18. Rxd8+ {[%emt 0:05:54]} Nxd8 {[%emt 0:00:05]} 19. Nd5 {[%emt 0:00:33]} Nxd5 {[%emt 0:00:53]} 20. Qxd5 {[%emt 0:00:04]} h5 {[%emt 0:02:12]} 21. b4 {[%emt 0:02:11]} Kh7 {[%emt 0:01:37]} 22. f4 {[%emt 0:04:40]} exf4 {[%emt 0:01:22]} 23. exf4 {[%emt 0:02:32]} Kg8 {[%emt 0:02:44]} 24. Kh2 {[%emt 0:03:33]} h4 {[%emt 0:03:19]} 25. Qe4 {[%emt 0:06:25]} hxg3+ {[%emt 0:00:37]} 26. Kxg3 {[%emt 0:00:01]} Qxe4 {[%emt 0:01:18]} 27. Nxe4 {[%emt 0:00:01]} Kf8 {[%emt 0:02:18]} 28. Kf2 {[%emt 0:01:11]} Ke7 {[%emt 0:00:34]} 29. Ke3 {[%emt 0:00:06]} f5 {[%emt 0:00:55]} 30. Nc3 {[%emt 0:01:06]} a6 {[%emt 0:00:40]} 31. g3 {[%emt 0:01:50]} 1/2-1/2

[Event "ESP-chT Honor Division 2022"]
[Site "Linares"]
[Date "2022.09.18"]
[Round "2.12"]
[White "Batsiashvili, Nino"]
[Black "Moreno Tejera, Emilio"]
[Result "1/2-1/2"]
[ECO "E73"]
[WhiteElo "2477"]
[BlackElo "2411"]
[Annotator "ChessBase"]
[PlyCount "149"]
[EventDate "2022.09.17"]
[EventType "team-tourn"]
[EventCountry "ESP"]
[SourceTitle "playchess.com"]
[Source "ChessBase"]
[SourceQuality "1"]
[TimeControl "5400+30"]

1. d4 {[%emt 0:00:03]} Nf6 {[%emt 0:00:10]} 2. c4 {[%emt 0:00:13]} g6 {[%emt 0:00:11]} 3. Nc3 {[%emt 0:00:09]} Bg7 {[%emt 0:00:19]} 4. e4 {[%emt 0:00:09]} d6 {[%emt 0:00:14]} 5. Be2 {[%emt 0:00:05]} O-O {[%emt 0:02:01]} 6. Be3 {[%emt 0:00:04]} c5 {[%emt 0:06:53]} 7. d5 {[%emt 0:00:16]} e6 {[%emt 0:01:34]} 8. Nf3 {[%emt 0:00:11]} exd5 {[%emt 0:03:56]} 9. cxd5 {[%emt 0:00:06]} b5 {[%emt 0:21:58]} 10. e5 {[%emt 0:04:31]} Ng4 {[%emt 0:06:39]} 11. Bg5 {[%emt 0:03:37]} f6 {[%emt 0:03:38]} 12. exf6 {[%emt 0:02:05]} Nxf6 {[%emt 0:02:31]} 13. Nxb5 {[%emt 0:02:55]} Bb7 {[%emt 0:14:49]} 14. O-O {[%emt 0:05:19]} a6 {[%emt 0:09:15]} 15. Nc3 {[%emt 0:01:54]} Nbd7 {[%emt 0:00:59]} 16. a4 {[%emt 0:02:25]} Qc7 {[%emt 0:04:55]} 17. a5 {[%emt 0:01:07]} Rae8 {[%emt 0:00:54]} 18. Ra4 {[%emt 0:03:27]} Kh8 {[%emt 0:02:13]} 19. Re1 {[%emt 0:03:39]} Ne5 {[%emt 0:01:13]} 20. Nxe5 {[%emt 0:07:33]} Rxe5 {[%emt 0:00:59]} 21. f4 {[%emt 0:01:21]} Re3 {[%emt 0:03:08]} 22. Bf3 {[%emt 0:01:32]} Rxe1+ {[%emt 0:01:38]} 23. Qxe1 {[%emt 0:00:02]} Re8 {[%emt 0:00:13]} 24. Qd2 {[%emt 0:00:33]} Bc8 {[%emt 0:01:57]} 25. h3 {[%emt 0:11:35]} Bf5 {[%emt 0:00:48]} 26. Bh4 {[%emt 0:15:24]} Qb7 {[%emt 0:01:30]} 27. Bf2 {[%emt 0:03:12]} Rb8 {[%emt 0:00:59]} 28. Be2 {[%emt 0:04:54]} Bc8 {[%emt 0:00:59]} 29. Ra2 {[%emt 0:06:16]} Qb4 {[%emt 0:00:05]} 30. Qe3 {[%emt 0:02:09]} Qb7 {[%emt 0:01:05]} 31. Qd3 {[%emt 0:00:27]} Qf7 {[%emt 0:00:17]} 32. Qf3 {[%emt 0:06:08]} Rb4 {[%emt 0:01:10]} 33. Bd3 {[%emt 0:00:01]} Bb7 {[%emt 0:02:12]} 34. f5 {[%emt 0:01:18]} Nxd5 {[%emt 0:00:33]} 35. fxg6 {[%emt 0:00:22]} Qxf3 {[%emt 0:01:55]} 36. gxf3 {[%emt 0:00:01]} Nf4 {[%emt 0:01:54]} 37. Be4 {[%emt 0:01:02]} d5 {[%emt 0:00:47]} 38. Bf5 {[%emt 0:02:01]} hxg6 {[%emt 0:01:22]} 39. Bg4 {[%emt 0:01:21]} Nd3 {[%emt 0:00:45]} 40. Be6 {[%emt 0:02:01]} Nf4 {[%emt 0:00:32]} 41. Bg4 {[%emt 0:00:02]} d4 {[%emt 0:00:46]} 42. Na4 {[%emt 0:00:35]} Bd5 {[%emt 0:00:26]} 43. Ra1 {[%emt 0:00:10]} Nd3 {[%emt 0:00:34]} 44. Bc8 {[%emt 0:00:29]} Bc6 {[%emt 0:00:27]} 45. Nxc5 {[%emt 0:02:37]} Nxc5 {[%emt 0:00:20]} 46. Rc1 {[%emt 0:00:01]} Rb5 {[%emt 0:00:47]} 47. b4 {[%emt 0:00:23]} Bd7 {[%emt 0:00:26]} 48. Bxd7 {[%emt 0:03:03]} Nxd7 {[%emt 0:00:04]} 49. Rc6 {[%emt 0:00:05]} Rxb4 {[%emt 0:01:11]} 50. Rxa6 {[%emt 0:00:03]} Ne5 {[%emt 0:00:25]} 51. Rd6 {[%emt 0:01:58]} Nxf3+ {[%emt 0:00:47]} 52. Kg2 {[%emt 0:00:12]} Ng5 {[%emt 0:00:13]} 53. a6 {[%emt 0:00:20]} Ra4 {[%emt 0:00:19]} 54. Rxg6 {[%emt 0:03:11]} Ne4 {[%emt 0:00:18]} 55. Re6 {[%emt 0:00:19]} Nc5 {[%emt 0:00:43]} 56. Rd6 {[%emt 0:00:23]} Nxa6 {[%emt 0:00:22]} 57. Kf3 {[%emt 0:00:24]} Kh7 {[%emt 0:00:36]} 58. h4 {[%emt 0:00:22]} Nc5 {[%emt 0:00:44]} 59. Rd5 {[%emt 0:00:34]} Nd3 {[%emt 0:00:28]} 60. Bg1 {[%emt 0:00:28]} Nb4 {[%emt 0:00:45]} 61. Rd7 {[%emt 0:00:07]} Nc6 {[%emt 0:00:26]} 62. Bh2 {[%emt 0:00:11]} Ra3+ {[%emt 0:00:17]} 63. Kg4 {[%emt 0:01:26]} Re3 {[%emt 0:00:49]} 64. Bf4 {[%emt 0:00:56]} Re6 {[%emt 0:00:16]} 65. Kf5 {[%emt 0:00:47]} Re2 {[%emt 0:00:13]} 66. h5 {[%emt 0:00:11]} Ne7+ {[%emt 0:00:25]} 67. Kg4 {[%emt 0:00:04]} Re6 {[%emt 0:00:32]} 68. Bg5 {[%emt 0:01:28]} Nc6 {[%emt 0:00:30]} 69. Kf5 {[%emt 0:00:14]} Re5+ {[%emt 0:00:11]} 70. Kf4 {[%emt 0:00:03]} Kg8 {[%emt 0:00:56]} 71. h6 {[%emt 0:00:06]} Bxh6 {[%emt 0:00:36]} 72. Bxh6 {[%emt 0:00:01]} Re7 {[%emt 0:00:42]} 73. Rxe7 {[%emt 0:00:28]} Nxe7 {[%emt 0:00:04]} 74. Ke4 {[%emt 0:00:02]} Kf7 {[%emt 0:00:06]} 75. Kxd4 {[%emt 0:00:04]} 1/2-1/2

[Event "ESP-chT Honor Division 2022"]
[Site "Linares"]
[Date "2022.09.18"]
[Round "2.13"]
[White "Gines Esteo, Pedro Antonio"]
[Black "Kryvoruchko, Yuriy"]
[Result "0-1"]
[ECO "D35"]
[WhiteElo "2505"]
[BlackElo "2669"]
[Annotator "ChessBase"]
[PlyCount "88"]
[EventDate "2022.09.17"]
[EventType "team-tourn"]
[EventCountry "ESP"]
[SourceTitle "playchess.com"]
[Source "ChessBase"]
[SourceQuality "1"]
[TimeControl "5400+30"]

1. d4 {[%emt 0:02:36]} Nf6 {[%emt 0:00:04]} 2. c4 {[%emt 0:00:14]} e6 {[%emt 0:00:05]} 3. Nc3 {[%emt 0:00:16]} d5 {[%emt 0:00:38]} 4. cxd5 {[%emt 0:00:23]} exd5 {[%emt 0:00:04]} 5. Bg5 {[%emt 0:00:07]} c6 {[%emt 0:00:26]} 6. e3 {[%emt 0:00:08]} h6 {[%emt 0:00:20]} 7. Bh4 {[%emt 0:00:16]} Be7 {[%emt 0:00:13]} 8. Qc2 {[%emt 0:04:17]} O-O {[%emt 0:00:17]} 9. Bd3 {[%emt 0:04:49]} a5 {[%emt 0:01:22]} 10. Nf3 {[%emt 0:03:13]} Nbd7 {[%emt 0:02:47]} 11. O-O {[%emt 0:03:41]} Re8 {[%emt 0:00:05]} 12. Bg3 {[%emt 0:03:12]} Bf8 {[%emt 0:14:35]} 13. h3 {[%emt 0:01:27]} b5 {[%emt 0:04:57]} 14. Rad1 {[%emt 0:14:25]} Bb7 {[%emt 0:04:39]} 15. Ne5 {[%emt 0:03:10]} Nxe5 {[%emt 0:04:02]} 16. dxe5 {[%emt 0:00:36]} Nd7 {[%emt 0:00:10]} 17. f4 {[%emt 0:01:59]} Nc5 {[%emt 0:09:11]} 18. Bh7+ {[%emt 0:24:54]} Kh8 {[%emt 0:00:57]} 19. Ne4 {[%emt 0:01:20]} Nxe4 {[%emt 0:15:10]} 20. Bxe4 {[%emt 0:00:02]} Qb6 {[%emt 0:00:04]} 21. Bd3 {[%emt 0:07:20]} Bc5 {[%emt 0:05:18]} 22. Qe2 {[%emt 0:04:59]} Bxe3+ {[%emt 0:01:22]} 23. Kh1 {[%emt 0:00:11]} d4 {[%emt 0:02:00]} 24. Qh5 {[%emt 0:09:43]} c5 {[%emt 0:00:08]} 25. Qf5 {[%emt 0:03:01]} Qg6 {[%emt 0:09:14]} 26. Qxg6 {[%emt 0:00:07]} fxg6 {[%emt 0:00:03]} 27. Bxg6 {[%emt 0:01:19]} Rec8 {[%emt 0:02:38]} 28. f5 {[%emt 0:01:47]} Bd5 {[%emt 0:00:15]} 29. f6 {[%emt 0:04:56]} Rf8 {[%emt 0:07:37]} 30. f7 {[%emt 0:00:28]} Ra6 {[%emt 0:00:22]} 31. e6 {[%emt 0:00:32]} Rxe6 {[%emt 0:01:17]} 32. Bh5 {[%emt 0:00:29]} g6 {[%emt 0:01:37]} 33. Bg4 {[%emt 0:00:01]} Rb6 {[%emt 0:00:10]} 34. Bc7 {[%emt 0:00:45]} Rc6 {[%emt 0:01:58]} 35. Be5+ {[%emt 0:00:19]} Kh7 {[%emt 0:00:04]} 36. Bd7 {[%emt 0:00:03]} Rb6 {[%emt 0:00:17]} 37. Be8 {[%emt 0:00:27]} Re6 {[%emt 0:04:58]} 38. Bc7 {[%emt 0:00:52]} Bc4 {[%emt 0:00:04]} 39. Rfe1 {[%emt 0:00:23]} a4 {[%emt 0:00:13]} 40. a3 {[%emt 0:00:33]} Kg7 {[%emt 0:04:50]} 41. Bb8 {[%emt 0:00:09]} Bb3 {[%emt 0:00:15]} 42. Ba7 {[%emt 0:01:25]} Bxd1 {[%emt 0:01:55]} 43. Rxd1 {[%emt 0:00:01]} Re5 {[%emt 0:00:04]} 44. Bb8 {[%emt 0:01:00]} Rexe8 {[%emt 0:00:24]} 0-1

[Event "ESP-chT Honor Division 2022"]
[Site "Linares"]
[Date "2022.09.18"]
[Round "2.14"]
[White "Anton Guijarro, David"]
[Black "Ayats Llobera, Gerard"]
[Result "1-0"]
[ECO "A05"]
[WhiteElo "2662"]
[BlackElo "2451"]
[Annotator "ChessBase"]
[PlyCount "95"]
[EventDate "2022.09.17"]
[EventType "team-tourn"]
[EventCountry "ESP"]
[SourceTitle "playchess.com"]
[Source "ChessBase"]
[SourceQuality "1"]
[TimeControl "5400+30"]

1. Nf3 {[%emt 0:00:07]} Nf6 {[%emt 0:00:04]} 2. c4 {[%emt 0:00:23]} g6 {[%emt 0:00:07]} 3. Nc3 {[%emt 0:00:29]} Bg7 {[%emt 0:00:04]} 4. e4 {[%emt 0:00:36]} d6 {[%emt 0:00:05]} 5. d4 {[%emt 0:00:25]} O-O {[%emt 0:00:04]} 6. h3 {[%emt 0:00:44]} e5 {[%emt 0:00:19]} 7. d5 {[%emt 0:00:11]} a5 {[%emt 0:00:10]} 8. g4 {[%emt 0:01:19]} Na6 {[%emt 0:00:07]} 9. Be3 {[%emt 0:00:18]} Nc5 {[%emt 0:01:30]} 10. Nd2 {[%emt 0:09:10]} b6 {[%emt 0:04:24]} 11. Be2 {[%emt 0:03:49]} Ne8 {[%emt 0:00:49]} 12. h4 {[%emt 0:06:49]} f5 {[%emt 0:01:21]} 13. g5 {[%emt 0:15:10]} Bd7 {[%emt 0:05:29]} 14. h5 {[%emt 0:10:26]} f4 {[%emt 0:29:22]} 15. Bxc5 {[%emt 0:00:21]} dxc5 {[%emt 0:00:16]} 16. h6 {[%emt 0:05:20]} Bh8 {[%emt 0:00:16]} 17. Bg4 {[%emt 0:00:09]} f3 {[%emt 0:18:17]} 18. Bxd7 {[%emt 0:08:43]} Qxd7 {[%emt 0:00:09]} 19. Qa4 {[%emt 0:00:56]} Qe7 {[%emt 0:09:44]} 20. Rg1 {[%emt 0:06:55]} Nd6 {[%emt 0:00:27]} 21. O-O-O {[%emt 0:00:53]} Rf4 {[%emt 0:05:00]} 22. Qc6 {[%emt 0:02:32]} Raf8 {[%emt 0:03:37]} 23. b3 {[%emt 0:09:55]} R4f7 {[%emt 0:03:21]} 24. Rg3 {[%emt 0:01:36]} Qd8 {[%emt 0:00:13]} 25. Nb5 {[%emt 0:01:48]} Qb8 {[%emt 0:08:06]} 26. Re1 {[%emt 0:01:19]} Nb7 {[%emt 0:01:51]} 27. Nc3 {[%emt 0:06:33]} Nd8 {[%emt 0:01:48]} 28. Qa4 {[%emt 0:00:06]} c6 {[%emt 0:01:46]} 29. Re3 {[%emt 0:00:13]} Qd6 {[%emt 0:01:52]} 30. Rgxf3 {[%emt 0:02:49]} Rf4 {[%emt 0:00:54]} 31. Rd3 {[%emt 0:01:01]} Rxf3 {[%emt 0:02:55]} 32. Nxf3 {[%emt 0:01:08]} Qd7 {[%emt 0:01:11]} 33. Nb1 {[%emt 0:02:32]} b5 {[%emt 0:00:24]} 34. Qxa5 {[%emt 0:00:34]} Ne6 {[%emt 0:00:15]} 35. Nbd2 {[%emt 0:00:38]} Nf4 {[%emt 0:00:51]} 36. Re3 {[%emt 0:00:27]} Ng2 {[%emt 0:00:27]} 37. Rc3 {[%emt 0:00:33]} Nf4 {[%emt 0:00:45]} 38. dxc6 {[%emt 0:01:08]} Qxc6 {[%emt 0:00:18]} 39. cxb5 {[%emt 0:00:33]} Ne2+ {[%emt 0:00:10]} 40. Kb2 {[%emt 0:00:37]} Qb7 {[%emt 0:00:03]} 41. Rxc5 {[%emt 0:00:41]} Nd4 {[%emt 0:00:28]} 42. Qc7 {[%emt 0:00:31]} Qa8 {[%emt 0:00:34]} 43. b6 {[%emt 0:00:33]} Ne6 {[%emt 0:00:15]} 44. Qc6 {[%emt 0:00:38]} Nxc5 {[%emt 0:00:04]} 45. Qxc5 {[%emt 0:00:04]} Rf7 {[%emt 0:00:32]} 46. a4 {[%emt 0:00:29]} Qd8 {[%emt 0:00:54]} 47. a5 {[%emt 0:00:34]} Qa8 {[%emt 0:01:34]} 48. Qb5 {[%emt 0:00:40]} 1-0